Cogmind - Beta 16 @@@ ROGUE MODE // 2025.11.20 @ 10:07:18 Player: shapeshifter Result: Destroyed by G-47 Trooper with Particle Gun Performance ------------- Evolutions (2) 1000 Regions Visited (6) 1200 Robots Destroyed (28) 140 Value Destroyed (1037) 1037 Prototype IDs (25) 500 Alien Tech Used (0) 0 Bonus (500) 500 TOTAL SCORE: 4377 Bonus ------- Entered Garrisons 200 Aligned with FarCom 300 Cogmind --------- Core Integrity 0/550 Matter 201/300 Energy 99/100 System Corruption 42% Temperature Cool (11) Movement Hovering (80) Location -8/Garrison Parts ------- > --- POWER (1) -------- (None) > --- PROPULSION (3) --- Combat Airjet > --- UTILITY (5) ------ (None) > --- WEAPON (2) ------- Improved Datajack > --- INVENTORY (5) ---- Matter Filter Energy Filter Trap Reconfigurator Chronowheel Latent Energy Streamer Peak State ------------ > --- POWER ------------ (None) > --- PROPULSION ------- Combat Airjet Combat Airjet Combat Airjet > --- UTILITY ---------- Improved Heat Sink Large Storage Unit Matter Filter Energy Filter > --- WEAPON ----------- Improved Grenade Launcher > --- INVENTORY -------- Light Ion Engine EM Disruption Field Relay Coupler [NC] Relay Coupler [Behemoth] Trap Reconfigurator Chronowheel Latent Energy Streamer Improved Datajack [Rating: 34] Favorites ----------- Power Ion Engine Engine Ion Engine Propulsion Wheel Treads Light Treads Leg Aluminum Leg Wheel Wheel Hover Unit Combat Airjet Flight Unit Cesium-ion Thruster Utility Large Storage Unit Device Seismic Detector Storage Large Storage Unit Protection Medium Armor Plating Weapon Medium Laser Energy Gun Medium Laser Energy Cannon Latent Energy Streamer Ballistic Gun Makeshift Shrapnel Gun Launcher Improved Grenade Launcher Special Melee Weapon Improved Datajack Build | -11 -10 -10 -10 -9 -8 -8 ------- Run | Yrd Mat Min Exi Min Mat Gar Slots Evolved 4 | . . . . . 4 . Power . | . . . . . . . Propulsion 1 | . . . . . 1 . Utility 3 | . . . . . 3 . Weapon . | . . . . . . . Parts Attached 33 | 7 2 . 1 1 4 18 Power 2 | 1 . . . . . 1 Engine 2 | 1 . . . . . 1 Core . | . . . . . . . Reactor . | . . . . . . . Propulsion 10 | 2 2 . . . . 6 Treads 2 | 2 . . . . . . Leg 1 | . . . . . . 1 Wheel 2 | . 2 . . . . . Hover 4 | . . . . . . 4 Flight 1 | . . . . . . 1 Utility 13 | 2 . . 1 1 2 7 Device 8 | 1 . . . . 2 5 Storage 2 | 1 . . 1 . . . Processor . | . . . . . . . Hackware . | . . . . . . . Protection 3 | . . . . 1 . 2 Artifact . | . . . . . . . Weapon 8 | 2 . . . . 2 4 Energy Gun 4 | 2 . . . . 1 1 Energy Cannon 1 | . . . . . . 1 Ballistic Gun 1 | . . . . . 1 . Ballistic Cannon . | . . . . . . . Launcher 1 | . . . . . . 1 Special Weapon . | . . . . . . . Impact Weapon . | . . . . . . . Slashing Weapon . | . . . . . . . Piercing Weapon . | . . . . . . . Special Melee Weapon 1 | . . . . . . 1 Unidentified Prototypes 2 | . . . . . 1 1 Corrupted Parts 3 | . . . . . . 3 System Corruption 30 | . . . . . . 30 Parts Lost 20 | . . . . . 4 16 Power 2 | . . . . . . 2 Propulsion 8 | . . . . . 1 7 Utility 6 | . . . . . 2 4 Weapon 4 | . . . . . 1 3 Highest Loss Streak 7 | . . . . . 3 7 To Critical Strikes . | . . . . . . . Average Backups 9 | 4 5 6 7 11 13 12 Power . | . 1 1 1 1 1 . Propulsion 1 | 1 2 2 2 2 . 1 Utility 3 | . 1 2 2 5 5 5 Weapon 2 | . 1 1 1 2 4 2 Tool/Special . | . . . . . . . Unused Backups 8 | . . . . . . 8 Power . | . . . . . . . Propulsion . | . . . . . . . Utility 6 | . . . . . . 6 Weapon 1 | . . . . . . 1 Tool/Special 1 | . . . . . . 1 Average Slot Usage (%) 86 | . 100 100 100 100 81 68 Engine 10 | . 14 14 14 14 9 6 Treads 5 | . 15 . . . 11 9 Wheel 15 | . 12 28 28 28 14 . Hover 2 | . . . . . . 8 Device 11 | . 14 14 14 3 12 15 Storage 11 | . 14 14 14 14 9 8 Protection 4 | . . . . 10 7 3 Energy Gun 17 | . 28 28 28 28 15 4 Ballistic Gun 2 | . . . . . 2 5 Peak Build Rating 34 | 7 7 7 11 14 25 34 Average Rating 14 | 5 7 7 8 12 21 24 On Entrance 8 | . 7 7 7 11 14 15 Avg Prop Armor Cover (%) 6 | . . . . . 6 5 Naked Turns . | . . . . . . . Heaviest Build 40 | 14 14 14 29 35 40 38 Greatest Support 40 | 40 40 20 20 20 40 40 Greatest Overweight (x) 1 | . . . 1 1 1 1 Average Overweight (x) . | . . . . 1 . . Largest Inventory Capacity 15 | 8 8 8 15 15 15 15 Average Capacity 12 | 7 8 8 10 15 15 14 Most Carried 15 | 6 6 6 9 14 15 15 Average Carried 10 | 4 5 6 7 12 14 12 Final Capacity 15 | 8 8 8 15 15 15 5 Final Carried 15 | 5 6 6 9 14 15 5 Class Distribution -------------------- 77% | Mutant 11% | Skirmisher 10% | Scavenger-Mutant Dominant Class ---------------- Mutant | -10/Materials Mutant | -10/Mines Mutant | -10/Exiles Mutant | -9/Mines Skirmisher | -8/Materials Mutant | -8/Garrison Resources | -11 -10 -10 -10 -9 -8 -8 ----------- Run | Yrd Mat Min Exi Min Mat Gar Matter Collected 743 | 270 20 . . 20 120 313 Remotely . | . . . . . . . Salvage Created 1293 | 222 . . . 26 411 634 Parts 47 | 16 . . . 2 16 13 Haulers Intercepted . | . . . . . . . Recyclers Shooed . | . . . . . . . Parts Field Recycled . | . . . . . . . Retrieved Matter . | . . . . . . . Parts Self-Destructed . | . . . . . . . Prevented . | . . . . . . . Parts Restored . | . . . . . . . Kills | -11 -10 -10 -10 -9 -8 -8 ------- Run | Yrd Mat Min Exi Min Mat Gar Combat Hostiles Destroyed 18 | . . . . . 9 9 Guns 12 | . . . . . 7 5 AOE 6 | . . . . . 2 4 Classes Destroyed 8 | 2 . . . 1 3 2 Worker 1 | . . . . 1 . . Tunneler 7 | 7 . . . . . . Recycler 2 | 1 . . . . 1 . Swarmer 3 | . . . . . 3 . Grunt 10 | . . . . . 5 5 Sentry 3 | . . . . . 1 2 Specialist 1 | . . . . . . 1 Programmer 1 | . . . . . . 1 Best Kill Streak 4 | 2 . . . 1 4 3 Combat Bots Only 4 | . . . . . 4 3 Max Kills in Single Turn 3 | 1 . . . 1 3 1 Gunslinging 1 | . . . . . 1 . Exploded 2 | . . . . . 2 1 Melee . | . . . . . . . Uniques/NPCs Destroyed . | . . . . . . . Combat | -11 -10 -10 -10 -9 -8 -8 -------- Run | Yrd Mat Min Exi Min Mat Gar Hostile Shots Fired 250 | . . 6 . . 54 190 Missed 81 | . . 3 . . 14 64 Hits 169 | . . 3 . . 40 126 Projectile 169 | . . 3 . . 40 126 Critical Strikes 5 | . . . . . 1 4 Damage Taken 2575 | . . 24 . . 530 2021 Core 569 | . . 17 . . 49 503 Absorbed by Shields . | . . . . . . . Core Remaining (%) 96 | 100 . . . 93 . . Volleys Fired 84 | 17 . . . 1 21 45 Largest 2 | 2 . . . 2 2 2 Hottest 100 | 90 . . . 90 100 64 Shots Fired 137 | 34 . . . 2 38 63 Gun 130 | 34 . . . 2 38 56 Cannon 2 | . . . . . . 2 Launcher 5 | . . . . . . 5 Special . | . . . . . . . Kinetic 42 | . . . . . 11 31 Thermal 43 | 34 . . . 2 7 . Explosive 5 | . . . . . . 5 Electromagnetic 47 | . . . . . 20 27 Robot Hit Streak 19 | 7 . . . 6 19 7 Robot Miss Streak 7 | 3 . . . . 7 3 Penetration Max . | . . . . . . . Secondary Targets 2 | . . . . . 2 . Max Gunslinging Chain 1 | . . . . . 1 . Shots Hit Robots 104 | 20 . . . 1 32 51 Core Hits 68 | 9 . . . 1 21 37 Critical Kills . | . . . . . . . Critical Parts Destroyed . | . . . . . . . Critical Strikes 2 | 1 . . . . 1 . Burn 2 | 1 . . . . 1 . Melee Attacks 7 | . . . . . . 7 Impact . | . . . . . . . Slashing . | . . . . . . . Piercing . | . . . . . . . Sneak Attacks 7 | . . . . . . 7 Combat Hostiles . | . . . . . . . Follow-up Attacks . | . . . . . . . Damage Inflicted 3073 | 238 . . . 12 924 1899 Guns 1611 | 238 . . . 12 685 676 Cannons 14 | . . . . . . 14 Explosions 1443 | . . . . . 239 1204 Melee . | . . . . . . . Ramming 5 | . . . . . . 5 Kinetic 783 | . . . . . 268 515 Thermal 602 | 238 . . . 12 277 75 Explosive 369 | . . . . . . 369 Electromagnetic 1314 | . . . . . 379 935 Impact . | . . . . . . . Slashing . | . . . . . . . Piercing . | . . . . . . . Highest Corruption 42 | . . . . . . 42 Average Corruption 19 | . . . . . . 19 Corruption Purged . | . . . . . . . Corruption Blocked . | . . . . . . . Effects 25 | . . . . . . 25 Message Errors 4 | . . . . . . 4 Matter Fused 7 | . . . . . . 7 Energy Discharges 3 | . . . . . . 3 Data Loss (minor) 6 | . . . . . . 6 Misdirections 4 | . . . . . . 4 Weapon Failures 1 | . . . . . . 1 Overload Shots . | . . . . . . . Overflow Damage 24 | . . . . . . 24 Projectiles . | . . . . . . . Explosions 24 | . . . . . . 24 Melee . | . . . . . . . Knockbacks . | . . . . . . . Impact . | . . . . . . . Kinetic . | . . . . . . . Secondary . | . . . . . . . Self-Inflicted Damage 168 | . . . . . 42 126 Shots 5 | . . . . . 1 4 Rammed 2 | . . . . . . 2 Targets Rammed 2 | . . . . . . 2 Kicked . | . . . . . . . Crushed . | . . . . . . . Highest Temperature 265 | 90 . . . 39 265 8 Average Temperature 54 | 35 . . . 21 79 5 Received Heat Transfer 405 | . . . . . 144 261 Siege Activations . | . . . . . . . Martial Activations . | . . . . . . . Shielding Activations . | . . . . . . . Robots Disrupted . | . . . . . . . Combat Hostiles . | . . . . . . . Robots Corrupted 4 | . . . . . . 4 Combat Hostiles 4 | . . . . . . 4 Parts Fried 11 | . . . . . 2 9 Impact Corruptions . | . . . . . . . Robots Melted . | . . . . . . . Combat Hostiles . | . . . . . . . Parts Melted 6 | 5 . . . . 1 . Heat Transferred 1178 | 706 . . . 37 335 100 Parts Sabotaged . | . . . . . . . Parts Stolen . | . . . . . . . Parts Stripped . | . . . . . . . Power Chain Reactions 3 | . . . . . 2 1 Latent Energy Used 376 | . . . . . . 376 LE Corruption 6 | . . . . . . 6 Alert | -11 -10 -10 -10 -9 -8 -8 ------- Run | Yrd Mat Min Exi Min Mat Gar Maximum Alert Level 1 | . . . . . 1 1 Low Security (%) 74 | 100 100 100 . 100 91 28 Level 1 25 | . . . . . 8 71 Level 2 . | . . . . . . . Level 3 . | . . . . . . . Level 4 . | . . . . . . . Level 5 . | . . . . . . . High Security . | . . . . . . . Max Security . | . . . . . . . Peak Influence 397 | 10 . . . 5 213 397 Initial 105 | . . . . . . 105 Average 94 | 1 . . . . 62 252 Influence Increases 800 | 40 . . . 5 293 462 Destroy 0b10 Robot/C 360 | . . . . . 180 180 Destroy 0b10 Robot/NC 75 | 40 . . . 5 5 25 Destroy Leader 50 | . . . . . 40 10 Successful Hack 30 | . . . . . 14 16 Disable Machine 30 | . . . . . 30 . Anti-Garrison Action 100 | . . . . . . 100 Destroy Structure 80 | . . . . . 9 71 Lose Combat Pursuer 75 | . . . . . 15 60 Influence Decreases 413 | 40 . . . 5 130 238 Entered New Map 58 | . . . . . . 58 Time Decay 135 | 40 . . . 5 90 . Lost Part 200 | . . . . . 40 160 Lost Ally 20 | . . . . . . 20 Squads Dispatched 6 | . 3 . . . 3 . Investigation 2 | . 1 . . . 1 . Extermination . | . . . . . . . Reinforcement 3 | . 2 . . . 1 . Assault . | . . . . . . . Garrison 1 | . . . . . 1 . Intercept . | . . . . . . . Searches Triggered . | . . . . . . . Construction Impeded . | . . . . . . . Haulers Reinforced . | . . . . . . . Active Scanning Responses . | . . . . . . . Cargo Convoy Interrupts . | . . . . . . . Stealth | -11 -10 -10 -10 -9 -8 -8 --------- Run | Yrd Mat Min Exi Min Mat Gar Distress Signals 2 | . . . . . 2 . Communications Jammed . | . . . . . . . Distress Signals . | . . . . . . . Times Spotted 44 | . 1 3 . 1 14 25 Peak Tracking Total 8 | . 1 3 . 3 6 8 Tactical Retreats 3 | . . . . . 1 2 Traps | -11 -10 -10 -10 -9 -8 -8 ------- Run | Yrd Mat Min Exi Min Mat Gar Traps Triggered 4 | . . . . . 1 3 Indirectly . | . . . . . . . Trap Hack Attempts . | . . . . . . . Triggered . | . . . . . . . Disarmed . | . . . . . . . Reprogrammed . | . . . . . . . Reused . | . . . . . . . Traps Extracted . | . . . . . . . Installed . | . . . . . . . Triggered . | . . . . . . . Machines | -11 -10 -10 -10 -9 -8 -8 ---------- Run | Yrd Mat Min Exi Min Mat Gar Machines Disabled 3 | . . . . . 2 1 Max in Single Turn 1 | . . . . . 1 1 Garrison Relay 1 | . . . . . . 1 Machines Repaired . | . . . . . . . Machines Dismantled . | . . . . . . . Machines Sabotaged . | . . . . . . . Overloaded Fab Kills . | . . . . . . . Hacking | -11 -10 -10 -10 -9 -8 -8 --------- Run | Yrd Mat Min Exi Min Mat Gar Machines Accessed 8 | . 1 . 1 1 3 2 Terminals 5 | . 1 . . . 2 2 Fabricators . | . . . . . . . Repair Stations . | . . . . . . . Recycling Units . | . . . . . . . Scanalyzers . | . . . . . . . Garrison Access 1 | . . . . . 1 . Total Hacks 16 | . 2 . 1 1 5 7 Successful 5 | . . . 1 1 2 1 Failed 11 | . 2 . . . 3 6 Catastrophic 3 | . . . . . . 3 Database Lockouts . | . . . . . . . Manual 5 | . 2 . 1 . 2 . Terminals 13 | . 2 . . . 4 7 Fabricators . | . . . . . . . Repair Stations . | . . . . . . . Recycling Units . | . . . . . . . Scanalyzers . | . . . . . . . Garrison Access 1 | . . . . . 1 . Terminal Hacks 4 | . . . 1 1 1 1 Open Door 1 | . . . . 1 . . Zone Layout 1 | . . . . . 1 . Patrol Navigation 1 | . . . . . . 1 Proto ID Catalog 1 | . . . 1 . . . Fabricator Hacks . | . . . . . . . Repair Station Hacks . | . . . . . . . Recycling Unit Hacks . | . . . . . . . Scanalyzer . | . . . . . . . Garrison Access Hacks 1 | . . . . . 1 . Unlock Access 1 | . . . . . 1 . Unauthorized Hacks . | . . . . . . . Terminals . | . . . . . . . Fabricators . | . . . . . . . Repair Stations . | . . . . . . . Recycling Units . | . . . . . . . Scanalyzers . | . . . . . . . Garrison Access . | . . . . . . . Data Cores Recovered . | . . . . . . . Used . | . . . . . . . Hacking Detections 5 | . 1 . . . 2 2 Full Trace Events 1 | . . . . . . 1 Feedback Events . | . . . . . . . Feedback Blocked . | . . . . . . . Robot Schematics Acquired . | . . . . . . . Robots Built . | . . . . . . . Authchips . | . . . . . . . Time . | . . . . . . . Total Robot Build Rating . | . . . . . . . Part Schematics Acquired . | . . . . . . . Parts Built . | . . . . . . . Authchips . | . . . . . . . Time . | . . . . . . . Total Part Build Rating . | . . . . . . . Part Studies Acquired . | . . . . . . . Parts Repaired . | . . . . . . . Time . | . . . . . . . Parts Recycled . | . . . . . . . Recycled Matter . | . . . . . . . Retrieved Matter . | . . . . . . . Retrieved Components . | . . . . . . . Parts Scanalyzed . | . . . . . . . Part Schematics Acquired . | . . . . . . . Parts Damaged . | . . . . . . . Bothacking | -11 -10 -10 -10 -9 -8 -8 ------------ Run | Yrd Mat Min Exi Min Mat Gar Used RIF Installer . | . . . . . . . Robots Hacked . | . . . . . . . Non-combat . | . . . . . . . Combat . | . . . . . . . Robot Hacks Applied . | . . . . . . . Relay Couplers Released 5 | . . . . . . 5 Machine Destruction 5 | . . . . . . 5 Fabnet Peak Effective % . | . . . . . . . Robots Rewired 4 | . . . . . . 4 Allies Hacked . | . . . . . . . Hacks Repelled . | . . . . . . . Allies | -11 -10 -10 -10 -9 -8 -8 -------- Run | Yrd Mat Min Exi Min Mat Gar Total Allies 4 | . . . . . . 4 Largest Group . | . . . . . . . Highest-Rated Group . | . . . . . . . Highest-Rated Ally . | . . . . . . . Total Orders . | . . . . . . . Ally Attacks 7 | . . . . . . 7 Total Damage . | . . . . . . . Kills . | . . . . . . . Allies Corrupted . | . . . . . . . Allies Melted . | . . . . . . . Intel | -11 -10 -10 -10 -9 -8 -8 ------- Run | Yrd Mat Min Exi Min Mat Gar Active Infowar (turns) 944 | 37 127 175 260 80 265 . Terrain 265 | . . . . . 265 . Seismic 680 | 37 127 175 260 80 1 . Robot Analysis Total . | . . . . . . . Derelict Logs Recovered 5 | . . 3 . 2 . . Drone Launches 4 | . . . . . . 4 Drone Recoveries . | . . . . . . . Exploration | -11 -10 -10 -10 -9 -8 -8 ------------- Run | Yrd Mat Min Exi Min Mat Gar Turns Passed 2221 | 308 127 175 260 396 292 663 Spaces Moved 1546 | 160 95 145 302 400 127 317 Core 19 | 19 . . . . . . Treads 351 | 141 40 . . . 31 139 Legs . | . . . . . . . Wheels 998 | . 55 145 302 400 96 . Hover 178 | . . . . . . 178 Flight . | . . . . . . . Fastest Speed 50 | 50 80 80 80 95 95 66 Average Speed 104 | 146 113 80 84 95 110 122 Slowest Speed 240 | 160 160 80 95 95 160 240 Overloaded Moves . | . . . . . . . Propulsion Burnouts . | . . . . . . . Robots Hopped . | . . . . . . . Potential Cave-ins 2 | . . . . . . 2 Cave-ins Triggered . | . . . . . . . Exploration Rate (%) 41 | 9 33 49 68 72 15 44 Regions Visited 6 Branch Regions 3 Pre-discovered Areas 3 | . . 1 . 2 . . Known Exits Taken 1 | . . . . . 1 . Unknown Exits Taken 5 | 1 1 1 1 1 . . Scrap Searched 1 | . . . . 1 . . Spaces Dug 5 | . . . . . . 5 Terrain Destroyed 99 | . . . . . 7 92 Melee . | . . . . . . . Projectile . | . . . . . . . AOE 99 | . . . . . 7 92 Terrain Rammed . | . . . . . . . Walls Destroyed . | . . . . . . . Machines Disabled . | . . . . . . . Actions | -11 -10 -10 -10 -9 -8 -8 --------- Run | Yrd Mat Min Exi Min Mat Gar Total 2005 | 199 112 203 305 413 239 534 Wait 261 | 4 15 59 . 8 76 99 Move 1541 | 159 94 144 301 399 127 317 Hop . | . . . . . . . Pick Up 36 | 12 1 . 3 4 5 11 Fast Attach 5 | . . . . . 2 3 Attach 29 | 7 . . . . 3 19 Detach 6 | . . . . . . 6 Swap 7 | . 2 . 1 1 2 1 Drop 13 | . . . . . 3 10 Fire 84 | 17 . . . 1 21 45 Melee 7 | . . . . . . 7 Ram 3 | . . . . . . 3 Kick . | . . . . . . . Crush . | . . . . . . . Escape Stasis 13 | . . . . . . 13 Rewire . | . . . . . . . Trap . | . . . . . . . Miscellaneous . | . . . . . . . Route ------- -11/Scrapyard -10/Materials -10/Mines -10/Exiles -9/Mines -8/Materials (discovered 4 exits: Fac / Sto x2 / Gar) -8/Garrison (discovered 1 exit: [*Mat]) History --------- Turn | Location | Event 7 | -11/Scrapyard | Discovered new exit (range 16) 309 | -11/Scrapyard | Entered Materials 310 | -10/Materials | Build established: Mutant 381 | -10/Materials | Met 8R-AWN 413 | -10/Materials | Discovered new exit (range 15) 436 | -10/Materials | Entered Mines 437 | -10/Mines | Followed 8R-AWN into the Mines 479 | -10/Mines | Met a Derelict bent on vengeance 523 | -10/Mines | Learned location of Zion (-7) 543 | -10/Mines | Learned Materials garrison access intel 608 | -10/Mines | Discovered new exit (range 5) 611 | -10/Mines | Entered Exiles 632 | -10/Exiles | Welcomed by 8R-AWN 644 | -10/Exiles | Met EX-HEX 680 | -10/Exiles | Met EX-DEC 740 | -10/Exiles | Met EX-BIN 751 | -10/Exiles | Aligned with FarCom system 752 | -10/Exiles | Given EX-Vault access code 770 | -10/Exiles | Opened EX-Vault 775 | -10/Exiles | Found Latent Energy Streamer 777 | -10/Exiles | Found Trap Reconfigurator 784 | -10/Exiles | Found Chronowheel 805 | -10/Exiles | Warned to stay clear of 0b10 Research branches 864 | -10/Exiles | Discovered new exit (range 10) 871 | -10/Exiles | Stole three prototypes: Trap Reconfigurator, Chronowheel, Latent Energy Streamer 871 | -10/Exiles | Entered Mines 872 | -9/Mines | Learned location of Storage (-8) 996 | -9/Mines | Found the Drone Emporium 1000 | -9/Mines | Found Prototype Device 1112 | -9/Mines | A weapon hastily lodged in a ceiling crevice suddenly fell to the ground 1122 | -9/Mines | Learned location of 1 exit from Materials 1262 | -9/Mines | Discovered new exit (range 6) 1267 | -9/Mines | Entered Materials 1267 | -8/Materials | Evolved 4 slots: Propulsion x1, Utility x3 1268 | -8/Materials | Identified exit to Storage 1269 | -8/Materials | Identified exit to Factory 1270 | -8/Materials | Loaded intel: 1 garrison access location 1414 | -8/Materials | Discovered exit to Storage (range 15) 1472 | -8/Materials | Garrison activated, responded to threat 1559 | -8/Materials | Identified exit to Garrison 1559 | -8/Materials | Entered Garrison 1582 | -8/Garrison | Lost 3 parts (1n1u1w) 1725 | -8/Garrison | Triggered checkpoint 1749 | -8/Garrison | Garrison Relay disabled 1908 | -8/Garrison | Identified Bomb Drone Bay 1958 | -8/Garrison | System corruption reached 10% 1987 | -8/Garrison | System corruption reached 30% 2011 | -8/Garrison | Lost 7 parts (1p2n2u2w) 2011 | -8/Garrison | Lost 4 allies 2144 | -8/Garrison | Core integrity fell below 50% 2165 | -8/Garrison | Lost 4 allies 2179 | -8/Garrison | Triggered checkpoint 2179 | -8/Garrison | Triggered checkpoint 2180 | -8/Garrison | Lost 4 parts (1p1n1u1w) 2199 | -8/Garrison | Core integrity fell below 20% 2220 | -8/Garrison | Discovered new exit (range 15) 2222 | -8/Garrison | Destroyed by G-47 Trooper with Particle Gun Last Messages --------------- 02181_ Gravmag System destroyed. 02184_ System corrupted: Energy discharge (-35). 02202_ System corrupted: Energy discharge (-24). 02202_ Cmb. Airjet destroyed. 02210_ Connecting with Garrison Terminal... >>Download(Navigation) Retrieving Materials patrol records... Downloaded protocol data. 02212_ Slammed into S-10 Pest. 02216_ Dropped Relay Coupler [NC]. 02216_ Dropped Relay Coupler [Behemoth]. 02217_ System corrupted: Component data lost. 02217_ Dropped EM Disruption Field. 02217_ Dropped Lrg. Storage Unit. 02220_ Cesium-ion Thruster destroyed. 02220_ S-10 Pest destroyed. 02220_ EXIT=FOUND 02222_ Triggered Alarm Trap. 02222_ An alarm sounds. 02222_ G-47 Trooper springs to life. Map ----- +----------------------------------------------------+ | #?????????????????????????????????????????? | | #?????????????????????????????????????????? | | ## #?????????????????????????????????????????? | | ## #?????????????????????????????????????????? | | "?????????????????????????????????????????? | | "?????????????????????????????????????????? | | "?????????????????????????????????????????? | | "?????????????????????????????????????????? | | ## #?????????????????????????????????????????? | | ## #?????????????????????????????????????????? | | #???????????????????#?????????????????????? | | #?????????cc???????? ?????????????????????? | | #??????????????????? ?????????????????????? | | ## #??????????????????# ##???????????????????? | | ## #??????????????????] [???????????????????? | | ## #??????????????????] [???????????????????? | | ?# #??????????????????] [???????????????????? | | ?# #??????????????????] [???????????????????? | | ?# ########???????????# #???????????????????? | | ?# #???????????# #???????????????????? | | ?# ###### #???????????# #???????????????????? | | ?# #????# #??????????## ##??????????????????? | | ?# #????#g#??????????#g gg#??????????????????? | | ?# ###### ############/g//######## < #???????? | | ?# ^ #???????? | | ?# g s @ #???????? | | ?# !!ss #???????? | | ?########## ########!################Y#????????? | | ??????????# #?????##!#?????????????????????????? | | ??????????# #?????#" #?????????????????????????? | | ??????????# #?????#T #?????????????????????????? | | ??????????# #?????#""#?????????????????????????? | | ??????????# #?????####?????????????????????????? | | ??????????? ???????????????????????????????????? | | ??????????? ???????????????????????????????????? | | ??????????? ???????????????????????????????????? | | ??????????? ???????????????????????????????????? | | ??????????? ???????????????????????????????????? | | ??????????? ???????????????????????????????????? | | ??????????? ???????????????????????????????????? | | ??????????????????????????C??????gg????????????? | | ???????????????????????????????????????????????? | | ???????????????????????????????????????????????? | | ???????????????????????????????????????????????? | | ???????????????????????????????????????????????? | | ???????????????????????????????????????????????? | | ???????????????????????????????????????????????? | | ???????????????????????????????????????????????? | | ???????????????????????????????????????????????? | | ???????????????????????????????????????????????? | +----------------------------------------------------+ Best States ------------- Heat Dissipation 45 Energy Generation 10 Energy Capacity 250 Matter Stores 300 Matter Capacity 300 Sight Range 16 Terrain Scan Range 16 Terrain Scan Density 10 Armor Coverage 225 Evasion (%) 51 Recoil Reduction 2 Energy Filtering 30 Item Schematics ----------------- None Robot Schematics ------------------ None Fabricated ------------ Nothing Repaired ---------- Nothing Studied --------- None Alien Tech Used ----------------- None Achievements -------------- None Challenges ------------ None Game ------ Seed StorageAlertDoomcannon Manual? 0 Play Time 00:18:32 Cumulative 524.0 hours Start 2025.11.20 @ 09:51:52 End 2025.11.20 @ 10:07:18 Sessions 1 Manual Loads 0 Difficulty Rogue Special Mode None Game No. 702 Rogue 702 Adventurer 0 Explorer 0 Win Type - Total 18 Types 8/1/2/2/1/0/2/2/0/0 Lore% 92 Gallery% 86 Achievement% 69 Wizard Run 0 Options --------- Layout 0 ASCII 0 Keyboard 0 Movement Mouse Keybinds 0 Fullscreen 1 Font 24/Terminus Map View 76x50 Zoom Use 0% Tactical HUD 1 Map Filters NONE Filters NONE Steam 1 RUN: cec426ea-0cab-4375-aa78-dd4448ec0594